bitfinex-derivatives/quotes_BTCF0:USTF0_20210108
["timestamp","ask_amount","ask_price","bid_price","bid_amount"]
[1610081970706,1.69361556,38687.0,38686.0,0.450417]
[1610081970906,2.07346805,38687.0,38686.0,0.450417]
[1610081971309,0.26529895,38687.0,38686.0,0.450417]
[1610081971711,0.55674706,38693.0,38686.0,0.450417]
[1610081971908,0.55674706,38693.0,38692.0,0.13632608]
[1610081972109,0.55733655,38697.0,38693.0,4.05]
[1610081972309,0.55733655,38697.0,38693.0,4.15667]
[1610081972510,0.55723086,38699.0,38694.0,0.09527812]
[1610081972708,0.55723086,38699.0,38693.0,4.14587]
[1610081972909,0.55708218,38700.0,38693.0,4.14587]
[1610081973308,0.55696518,38701.0,38694.0,0.5]
[1610081973608,0.55696518,38701.0,38695.0,0.5]
[1610081973808,0.13632608,38700.0,38695.0,0.53197608]
[1610081974008,0.13632608,38700.0,38696.0,0.03197602]
[1610081974210,0.55741464,38699.0,38696.0,0.03197602]
[1610081974609,0.5570948,38698.0,38696.0,0.03197602]
[1610081974808,0.5570948,38698.0,38695.0,0.53197941]
[1610081975008,0.5574966,38697.0,38695.0,0.5]
[1610081975209,0.5574966,38697.0,38694.0,0.06330323]
[1610081975410,0.55747313,38696.0,38693.0,0.16997272]
[1610081975611,0.55747313,38696.0,38695.0,0.03197944]
[1610081975810,0.5572861,38697.0,38694.0,0.03197911]
[1610081976613,0.5572861,38697.0,38695.0,0.5]
[1610081976915,0.5572861,38697.0,38696.0,0.5]
[1610081977114,0.5572861,38697.0,38696.0,0.53197892]
[1610081977716,0.5572861,38697.0,38696.0,0.03197892]
[1610081977915,0.5572861,38697.0,38694.0,0.5]
[1610081978315,0.5572861,38697.0,38695.0,0.5]
[1610081978515,0.5572861,38697.0,38695.0,0.53197918]
[1610081978716,1.06037139,38699.0,38696.0,0.53197948]
[1610081979117,0.91036154,38700.0,38696.0,0.03197948]
[1610081979317,0.91036154,38700.0,38697.0,0.03198126]
[1610081979519,2.01271867,38698.0,38697.0,0.03198126]
[1610081979717,2.01271867,38698.0,38697.0,0.03165289]
[1610081979917,2.01271867,38698.0,38697.0,0.5]
[1610081980119,2.01271867,38698.0,38697.0,0.53198591]
[1610081980319,2.01271867,38698.0,38697.0,0.5]
[1610081980522,2.01271867,38698.0,38697.0,0.5319852]
[1610081981120,2.01271867,38698.0,38697.0,0.0319852]
[1610081981322,2.88310881,38698.0,38697.0,0.0319852]
[1610081981723,2.88310881,38698.0,38696.0,0.03198904]
[1610081981924,2.88310881,38698.0,38697.0,0.53198941]
[1610081982124,1.46797145,38699.0,38697.0,0.53198941]
[1610081982524,2.89119082,38698.0,38697.0,0.03198941]
[1610081982724,2.89119082,38698.0,38694.0,0.5]
[1610081982925,2.89119082,38698.0,38697.0,0.03198961]
[1610081983224,2.89119082,38698.0,38695.0,0.03198965]
[1610081983426,2.89119082,38698.0,38697.0,0.03198973]
[1610081983626,2.89119082,38698.0,38697.0,0.5]
[1610081983826,1.08817593,38699.0,38697.0,0.5]
[1610081984026,1.08817593,38699.0,38697.0,0.53199019]
[1610081984226,1.08817593,38699.0,38698.0,0.53199004]
[1610081984427,0.37988962,38699.0,38698.0,0.45284637]
[1610081984629,4.35723021,38699.0,38698.0,0.45284637]
[1610081984827,4.35723021,38699.0,38698.0,0.03199004]
[1610081985028,4.35723021,38699.0,38698.0,0.53199004]
[1610081985428,4.35723021,38699.0,38698.0,0.5]
[1610081985628,4.35723021,38699.0,38698.0,0.53199003]
[1610081986528,3.26973318,38699.0,38698.0,0.53199003]
[1610081986927,3.26973318,38699.0,38698.0,0.53119003]
[1610081987127,0.37988962,38699.0,38698.0,0.53119003]
[1610081987330,2.96707104,38699.0,38698.0,0.53119003]
[1610081987727,2.96707104,38699.0,38698.0,0.4992]
[1610081987728,2.39730549,38699.0,38698.0,0.4992]
[1610081987929,2.39730549,38699.0,38698.0,0.5311853]
[1610081988731,0.13632608,38700.0,38698.0,0.5311853]
[1610081988931,2.97207378,38699.0,38698.0,0.5311853]
[1610081989132,2.97207378,38699.0,38698.0,0.0319853]
[1610081989332,2.4046195,38699.0,38698.0,0.0319853]
[1610081989531,2.4046195,38699.0,38698.0,0.5]
[1610081989733,2.4046195,38699.0,38698.0,0.53198682]
[1610081990132,3.8449535,38699.0,38698.0,0.53198682]
[1610081990532,3.8449535,38699.0,38698.0,0.53040402]
[1610081990932,3.8449535,38699.0,38698.0,0.59372447]
[1610081991133,3.8449535,38699.0,38698.0,0.53040402]
[1610081991533,4.93270302,38699.0,38698.0,0.53040402]
[1610081994538,4.93270302,38699.0,38698.0,0.45125885]
[1610081995940,4.93270302,38699.0,38698.0,0.13405885]
[1610081996141,6.43270302,38699.0,38698.0,0.13405885]
[1610081996341,10.02530302,38699.0,38698.0,0.13405885]
[1610081996541,10.02530302,38699.0,38693.0,0.10667]
[1610081996742,12.9304864,38699.0,38643.0,0.06333112]
[1610081996941,12.9304864,38699.0,38698.0,0.5]
[1610081997143,3.7682939,38699.0,38698.0,0.5]
[1610081997344,14.11798931,38699.0,38698.0,0.0319997]
[1610081997644,14.11798931,38699.0,38698.0,0.00032856]
[1610081998043,11.01338931,38699.0,38686.0,0.5]
[1610081998244,11.01338931,38699.0,38698.0,0.5]
[1610081998444,15.23248931,38699.0,38698.0,0.5]
[1610081998645,14.66268566,38699.0,38698.0,0.50032856]
[1610081998943,15.23267454,38699.0,38698.0,0.50032856]
[1610081999644,11.01357454,38699.0,38698.0,0.50032856]
[1610081999846,11.01357454,38699.0,38698.0,0.00032856]
[1610082000047,11.01357454,38699.0,38688.0,0.10079]
[1610082000247,3.6504,38689.0,38688.0,0.10079]
[1610082000445,5.1504,38689.0,38688.0,0.10079]
[1610082000646,11.4155177,38689.0,38688.0,0.10079]
[1610082000844,11.4155177,38689.0,38688.0,0.13279183]
[1610082001046,12.9600977,38689.0,38688.0,0.13279183]
[1610082001849,13.42409726,38689.0,38688.0,0.09953495]
[1610082002049,6.3207795,38689.0,38688.0,0.09953495]
[1610082002249,6.3207795,38689.0,38661.0,0.09815642]
[1610082002450,6.3207795,38689.0,38688.0,0.03167601]
[1610082002451,15.72155128,38689.0,38688.0,0.03167601]
[1610082002650,12.07115128,38689.0,38680.0,0.09229]
[1610082002852,9.91740678,38689.0,38688.0,0.03200473]
[1610082003049,1.63632608,38689.0,38688.0,0.03200473]
[1610082003249,1.63632608,38689.0,38681.0,0.03200476]
[1610082003449,5.77922608,38689.0,38688.0,0.03200463]
[1610082003650,0.13632608,38689.0,38682.0,0.03200513]
[1610082004051,8.31319236,38689.0,38688.0,0.03200559]
[1610082004250,8.31319236,38689.0,38683.0,0.03200536]
[1610082004452,8.31319236,38689.0,38680.0,0.09229]
[1610082004453,1.55439745,38685.0,38680.0,0.09229]
[1610082005051,7.38964409,38685.0,38680.0,0.01310363]
[1610082005249,7.38964409,38685.0,38681.0,0.03200841]
[1610082005451,1.55439745,38685.0,38681.0,0.03200841]
[1610082005751,5.84085365,38682.0,38681.0,0.03200841]
[1610082005949,6.29845365,38682.0,38681.0,0.03200841]
[1610082006152,6.43477973,38682.0,38681.0,0.03200841]
[1610082006552,6.81489693,38682.0,38681.0,0.03200841]
[1610082006752,6.81489693,38682.0,38680.0,0.00220363]
[1610082007753,6.81489693,38682.0,38680.0,3.63e-06]
[1610082007754,6.23840757,38681.0,38680.0,3.63e-06]
[1610082007955,6.23840757,38681.0,38663.0,0.06335622]
[1610082008153,0.13632608,38664.0,38663.0,0.09536667]
[1610082008555,3.02578516,38664.0,38663.0,0.09536667]
[1610082008753,3.02578516,38664.0,38644.0,0.03201054]
[1610082008954,3.02578516,38664.0,38663.0,0.0320159]
[1610082009155,3.02578516,38664.0,38663.0,0.09551]
[1610082009354,0.51646508,38664.0,38663.0,0.59551]
[1610082009754,3.59874262,38664.0,38663.0,0.62752372]
[1610082009954,1.086707,38664.0,38663.0,0.62752372]
[1610082010154,3.59872863,38664.0,38663.0,0.69089052]
[1610082010354,1.086707,38664.0,38663.0,0.69089052]
[1610082010555,3.02794058,38664.0,38663.0,0.69089052]
[1610082011955,3.02794058,38664.0,38663.0,0.68930652]
[1610082012756,3.02794058,38664.0,38663.0,0.18930652]
[1610082012757,3.90656747,38664.0,38663.0,0.18930652]
[1610082012956,3.90656747,38664.0,38663.0,0.12593972]
[1610082013357,6.90976747,38664.0,38663.0,0.12593972]
[1610082013556,6.90976747,38664.0,38645.0,0.06337443]
[1610082013757,3.90656747,38664.0,38645.0,0.06337443]
[1610082013957,4.1647,38657.0,38645.0,0.03201937]
[1610082014157,4.1647,38657.0,38632.0,0.15845307]
[1610082014158,1.17154031,38646.0,38629.0,0.13632608]
[1610082014758,1.17154031,38646.0,38630.0,0.03201925]
[1610082014960,0.60689226,38646.0,38630.0,0.14108925]
[1610082015559,0.60689226,38646.0,38631.0,0.0320184]
[1610082015560,0.13632608,38646.0,38631.0,0.0320184]
[1610082015960,0.60474325,38646.0,38631.0,0.0320184]
[1610082016159,0.46841717,38646.0,38635.0,0.13632608]
[1610082016359,0.46841717,38646.0,38631.0,0.0320184]
[1610082016559,1.35093493,38655.0,38636.0,0.0320191]
[1610082016560,0.46850946,38645.0,38636.0,0.0320191]
[1610082016761,0.46850946,38645.0,38632.0,0.03201921]
[1610082016963,0.46895163,38644.0,38632.0,0.03201921]
[1610082017163,0.46895163,38644.0,38637.0,0.0320191]
[1610082017365,0.46954555,38645.0,38633.0,0.03201847]
[1610082017565,0.46954555,38645.0,38638.0,0.03201972]
[1610082017765,0.46954555,38645.0,38638.0,0.08876]
[1610082018165,0.46954555,38645.0,38639.0,0.03201861]
[1610082018369,0.46899702,38646.0,38639.0,0.03201861]
[1610082018566,0.46899702,38646.0,38639.0,0.53201861]
[1610082018766,0.46875685,38647.0,38640.0,0.5]
[1610082018966,0.46875685,38647.0,38640.0,0.5320184]
[1610082019167,0.46875685,38647.0,38641.0,0.5]
[1610082019367,0.46875685,38647.0,38641.0,0.53201884]
[1610082019568,0.46875685,38647.0,38642.0,0.5]
[1610082019768,0.46875685,38647.0,38642.0,0.53201881]
[1610082019968,0.46928911,38645.0,38643.0,0.53201957]
[1610082020168,0.13632608,38644.0,38643.0,0.53201957]
[1610082020568,0.65202608,38644.0,38643.0,0.5]
[1610082020768,0.65202608,38644.0,38643.0,0.53201997]
[1610082020971,0.65202608,38644.0,38643.0,0.03201997]
[1610082021569,0.65202608,38644.0,38640.0,0.09541074]
[1610082021769,0.65202608,38644.0,38643.0,0.03202328]
[1610082021970,0.65202608,38644.0,38641.0,0.03202292]
[1610082022370,0.65202608,38644.0,38640.0,0.03202292]
[1610082022570,0.65202608,38644.0,38642.0,0.03202232]
[1610082022772,0.65202608,38644.0,38641.0,0.03202221]
[1610082023171,0.65202608,38644.0,38639.0,0.03202247]
[1610082023373,0.65202608,38644.0,38642.0,0.03202177]
[1610082023573,0.65202608,38644.0,38638.0,0.08876]
[1610082023574,0.65202608,38644.0,38640.0,0.03202284]
[1610082023872,0.65202608,38644.0,38643.0,0.03202233]
[1610082024072,0.65202608,38644.0,38641.0,0.03202201]
[1610082024473,0.65202608,38644.0,38639.0,0.03202236]
[1610082024673,0.65202608,38644.0,38643.0,0.5]
[1610082025173,0.65202608,38644.0,38643.0,0.59541074]
[1610082025374,0.13632608,38644.0,38643.0,0.53202278]
[1610082025574,0.07632608,38644.0,38643.0,0.5]
[1610082025776,0.54908542,38649.0,38643.0,0.53202159]
[1610082025975,0.28805059,38646.0,38643.0,0.53202159]
[1610082026177,0.28805059,38646.0,38645.0,0.13632608]
[1610082026577,0.28805059,38646.0,38645.0,0.1683435]
[1610082028578,0.28805059,38646.0,38645.0,0.6683435]
[1610082028779,0.28805059,38646.0,38645.0,0.73172261]
[1610082029178,0.28805059,38646.0,38645.0,0.59539653]
[1610082029578,0.28805059,38646.0,38645.0,0.53201742]
[1610082030079,0.42437667,38646.0,38645.0,0.53201742]
[1610082035988,4.63087667,38646.0,38645.0,0.59540416]
[1610082036190,4.63087667,38646.0,38645.0,0.53201742]
[1610082036392,4.63087667,38646.0,38645.0,0.5954052]
[1610082036690,4.63087667,38646.0,38645.0,0.53201742]
[1610082036990,4.63087667,38646.0,38645.0,0.59540627]
[1610082037191,4.63087667,38646.0,38645.0,0.53201742]
[1610082038592,4.63087667,38646.0,38645.0,0.59540573]
[1610082038792,4.63087667,38646.0,38645.0,0.53201742]
[1610082039192,4.63087667,38646.0,38645.0,0.59540689]
[1610082039392,4.63087667,38646.0,38645.0,0.53201742]
[1610082039593,4.63087667,38646.0,38645.0,0.59540563]
[1610082039994,0.42437667,38646.0,38645.0,0.53201742]
[1610082040193,0.42437667,38646.0,38645.0,0.59540552]
[1610082040393,0.42437667,38646.0,38645.0,0.53201742]
[1610082040595,0.42437667,38646.0,38645.0,0.59540394]
[1610082042595,4.03547667,38646.0,38645.0,0.59540394]
[1610082043297,0.42437667,38646.0,38645.0,0.59540394]
[1610082046099,0.97847667,38646.0,38645.0,0.59540394]
[1610082049799,1.35876968,38646.0,38645.0,0.59540394]
[1610082051301,2.58340163,38646.0,38645.0,0.59540394]
[1610082051702,2.44707555,38646.0,38645.0,0.59540394]
[1610082052305,3.34928659,38646.0,38645.0,0.59540394]
[1610082052705,3.34928659,38646.0,38645.0,0.5618016]
[1610082053304,4.20592074,38646.0,38645.0,0.49841508]
[1610082053504,4.20592074,38646.0,38645.0,0.56182813]
[1610082053706,4.20592074,38646.0,38645.0,0.49841508]
[1610082056410,4.66486472,38646.0,38645.0,0.49841508]
[1610082059710,4.11076472,38646.0,38645.0,0.49841508]
[1610082061510,3.25413057,38646.0,38645.0,0.49841508]
[1610082062513,4.10892774,38646.0,38645.0,0.49841508]
[1610082062913,3.25413057,38646.0,38645.0,0.49683018]
[1610082064518,4.10920887,38646.0,38645.0,0.56023679]
[1610082064720,4.10920887,38646.0,38645.0,0.49683018]
[1610082064920,3.68083057,38646.0,38645.0,0.49683018]
[1610082065119,3.68083057,38646.0,38645.0,0.56023704]
[1610082065319,4.53537064,38646.0,38645.0,0.49683018]
[1610082065621,4.53537064,38646.0,38645.0,0.56023723]
[1610082066018,4.53537064,38646.0,38645.0,0.49683018]
[1610082066219,4.53537064,38646.0,38645.0,0.56023864]
[1610082066420,4.53537064,38646.0,38645.0,0.49683018]
[1610082066621,4.53537064,38646.0,38645.0,0.56023934]
[1610082070824,5.60746508,38646.0,38645.0,0.56023934]
[1610082071626,5.60746508,38646.0,38645.0,0.49683018]
[1610082072228,5.60746508,38646.0,38645.0,0.56025125]
[1610082072427,5.60746508,38646.0,38645.0,0.41756645]
[1610082072628,5.18076508,38646.0,38645.0,0.41756645]
[1610082072826,6.59898921,38646.0,38645.0,0.48099208]
[1610082073027,6.59898921,38646.0,38645.0,0.41756645]
[1610082073429,6.59898921,38646.0,38645.0,0.27418099]
[1610082073629,11.58428921,38646.0,38630.0,0.04375099]
[1610082073833,9.62085684,38646.0,38630.0,0.00545099]
[1610082074032,3.6824,38631.0,38586.0,3.3197]
[1610082074237,12.53368675,38631.0,38586.0,3.3197]
[1610082074435,0.13632608,38587.0,38576.0,0.13632608]
[1610082074634,0.13632608,38587.0,38556.0,3.8492]
[1610082074833,0.13632608,38587.0,38577.0,0.03206468]
[1610082075034,0.13632608,38587.0,38577.0,0.12174]
[1610082075434,0.13632608,38587.0,38578.0,0.0320655]
[1610082076435,0.13632608,38579.0,38578.0,0.0320655]
[1610082076635,0.45237236,38593.0,38578.0,0.0320655]
[1610082077435,0.45197605,38594.0,38578.0,0.0320655]
[1610082077836,0.45125729,38595.0,38578.0,0.0320655]
[1610082078234,0.54147868,38597.0,38578.0,0.0320655]
[1610082078235,0.4511619,38597.0,38578.0,0.0320655]
[1610082078434,0.4511619,38597.0,38596.0,0.13632608]
[1610082078634,0.66163396,38602.0,38596.0,0.26292608]
[1610082078635,0.45100841,38600.0,38596.0,0.26292608]
[1610082078837,0.45116133,38602.0,38596.0,0.29498789]
[1610082079034,0.45116133,38602.0,38596.0,0.1266]
[1610082079235,0.45112576,38599.0,38597.0,0.00032741]
[1610082079634,0.54132084,38601.0,38597.0,0.00032741]
[1610082079635,0.45085349,38600.0,38598.0,0.00032742]
[1610082079834,0.45085349,38600.0,38598.0,0.00065485]
[1610082080034,1.04183656,38599.0,38598.0,0.00065485]
[1610082080437,1.71844909,38599.0,38598.0,0.00032742]
[1610082080634,1.71844909,38599.0,38598.0,0.00065487]
[1610082080834,2.09923111,38599.0,38598.0,0.00065487]
[1610082081034,2.09923111,38599.0,38598.0,0.50065487]
[1610082082035,2.75901738,38599.0,38598.0,0.00065487]
[1610082082434,2.75901738,38599.0,38598.0,0.50065487]
[1610082083239,2.09923111,38599.0,38598.0,0.50065487]
[1610082084041,1.17816264,38599.0,38598.0,0.50065487]
[1610082085443,1.17816264,38599.0,38598.0,0.50032742]
[1610082085645,1.17816264,38599.0,38598.0,0.49874058]
[1610082086443,0.58716264,38599.0,38598.0,0.49874058]
[1610082086845,0.13632608,38599.0,38598.0,0.49874058]
[1610082087744,0.13632608,38599.0,38598.0,0.58142058]
[1610082087945,0.58503133,38599.0,38598.0,0.58142058]
[1610082088149,4.28773133,38599.0,38598.0,0.58142058]
[1610082088545,5.86312302,38599.0,38598.0,0.58142058]
[1610082088744,6.43442184,38599.0,38598.0,0.41939352]
[1610082089145,7.18008915,38599.0,38598.0,0.41939352]
[1610082089344,6.43442184,38599.0,38598.0,0.41939352]
[1610082089946,7.178965,38599.0,38598.0,0.41939352]
[1610082090346,7.178965,38599.0,38598.0,0.26067504]
[1610082091847,8.040648,38599.0,38598.0,0.26067504]
[1610082092247,7.208965,38599.0,38598.0,0.26067504]
[1610082092648,7.208965,38599.0,38598.0,0.23627504]
[1610082093250,8.03968442,38599.0,38598.0,0.23627504]
[1610082094758,7.208965,38599.0,38598.0,0.23627504]
[1610082096054,6.46442184,38599.0,38598.0,0.23627504]
[1610082096456,6.46442184,38599.0,38598.0,0.23468785]
[1610082097055,2.76172184,38599.0,38598.0,0.23468785]
[1610082097656,5.31872302,38599.0,38598.0,0.17758785]
[1610082097856,6.05976287,38599.0,38598.0,0.17758785]
[1610082098457,6.6311845,38599.0,38598.0,0.17758785]
[1610082099057,6.6311845,38599.0,38598.0,0.01885411]
[1610082099257,6.6311845,38599.0,38572.0,0.08672]
[1610082099858,6.6311845,38599.0,38598.0,0.5]
[1610082100058,0.90736593,38599.0,38598.0,0.5]
[1610082100260,0.90736593,38599.0,38598.0,0.53208101]
[1610082100461,2.18064392,38599.0,38598.0,0.53208101]
[1610082100661,2.18064392,38599.0,38598.0,0.03208101]
[1610082100862,1.7997085,38599.0,38598.0,0.03208101]
[1610082101060,1.7997085,38599.0,38574.0,0.09558351]
[1610082101261,2.18063711,38599.0,38598.0,0.0003288]
[1610082101461,2.18063711,38599.0,38598.0,0.53207989]
[1610082101662,0.16632608,38599.0,38598.0,0.5]
[1610082101861,0.16632608,38599.0,38598.0,0.53207858]
[1610082102061,1.52747008,38599.0,38598.0,0.53207858]
[1610082102262,1.34247008,38599.0,38598.0,0.53207858]
[1610082102463,1.47879616,38599.0,38598.0,0.66840466]
[1610082102862,1.47879616,38599.0,38598.0,0.53207858]
[1610082103263,1.47879616,38599.0,38598.0,0.03207858]
[1610082103465,0.58190242,38599.0,38598.0,0.03207858]
[1610082103663,0.58190242,38599.0,38598.0,0.5]
[1610082103864,0.13632608,38599.0,38598.0,0.5]
[1610082104064,0.13632608,38599.0,38598.0,0.53206935]
[1610082104264,0.13632608,38599.0,38598.0,0.59554763]
[1610082104464,0.13632608,38599.0,38598.0,0.53206935]
[1610082104863,0.13632608,38599.0,38598.0,0.59555077]
[1610082105064,0.13632608,38599.0,38598.0,0.53206935]
[1610082105263,0.13632608,38599.0,38598.0,0.59555876]
[1610082105463,0.58269082,38599.0,38598.0,0.59555876]
[1610082105663,0.58269082,38599.0,38598.0,0.53206935]
[1610082105864,1.11792381,38599.0,38598.0,0.53206935]
[1610082106065,1.49881071,38599.0,38598.0,0.53206935]
[1610082106663,0.13632608,38599.0,38598.0,0.53206935]
[1610082107062,0.13632608,38599.0,38598.0,0.63610935]
[1610082107463,0.13632608,38599.0,38598.0,0.69959104]
[1610082107664,0.13632608,38599.0,38598.0,0.69800443]
[1610082112972,0.58484592,38599.0,38598.0,0.69800443]
[1610082113472,1.12315886,38599.0,38598.0,0.69800443]
[1610082113871,4.66711177,38599.0,38598.0,0.69800443]
[1610082114472,5.89523821,38599.0,38598.0,0.51461716]
[1610082114671,5.3239379,38599.0,38598.0,0.51461716]
[1610082114871,5.3239379,38599.0,38598.0,0.45113547]
[1610082115071,5.89524476,38599.0,38598.0,0.45113547]
[1610082115872,6.64156454,38599.0,38598.0,0.45113547]
[1610082119275,6.64156454,38599.0,38598.0,0.29241529]
[1610082121081,6.64156454,38599.0,38598.0,0.29082801]
[1610082121382,7.47718757,38599.0,38598.0,0.29082801]
[1610082124584,7.47718757,38599.0,38598.0,0.21146305]
[1610082125785,7.93349135,38599.0,38598.0,0.21146305]
[1610082126986,8.98029462,38599.0,38598.0,0.21146305]
[1610082127288,8.98029462,38599.0,38598.0,0.05272137]
[1610082127485,8.98029462,38599.0,38598.0,0.02098071]
[1610082127686,8.98029462,38599.0,38598.0,0.0527358]
[1610082128987,8.98029462,38599.0,38598.0,0.02098071]
[1610082129392,10.2997412,38599.0,38598.0,0.02098071]
[1610082129589,10.2997412,38599.0,38598.0,0.05273619]
[1610082129791,10.2997412,38599.0,38598.0,0.02065202]
[1610082130091,10.2997412,38599.0,38598.0,0.05273623]
[1610082130288,10.2997412,38599.0,38598.0,0.02065202]
[1610082130490,10.1257412,38599.0,38598.0,0.02065202]
[1610082130689,10.26206728,38599.0,38598.0,0.05273781]
[1610082130890,10.26206728,38599.0,38598.0,0.02065202]
[1610082131091,10.26206728,38599.0,38598.0,0.05273748]
[1610082131692,10.26206728,38599.0,38598.0,0.05115008]
[1610082133195,10.26206728,38599.0,38598.0,0.08115008]
[1610082133591,10.26206728,38599.0,38598.0,0.04939347]
[1610082133791,10.26206728,38599.0,38598.0,0.0811488]
[1610082134792,0.03030146,38593.0,38588.0,0.0972]
[1610082134992,10.26206728,38599.0,38588.0,0.0972]
[1610082135192,10.26206728,38599.0,38589.0,0.5]
[1610082135392,10.26206728,38599.0,38589.0,0.53208325]
[1610082135593,2.7873957,38590.0,38589.0,0.5]
[1610082136194,2.7873957,38590.0,38589.0,0.53208387]
[1610082136395,2.7873957,38590.0,38589.0,0.03208387]
[1610082136794,3.36482178,38590.0,38589.0,0.03208387]
[1610082136997,3.74577854,38590.0,38589.0,0.53208387]
[1610082137596,3.56077854,38590.0,38589.0,0.53208387]
[1610082137798,2.98335246,38590.0,38589.0,0.59559182]
[1610082138396,2.62505246,38590.0,38589.0,0.59559182]
[1610082138596,1.57987852,38590.0,38589.0,0.59559182]
[1610082138794,1.57987852,38590.0,38589.0,0.7319179]
[1610082138996,1.19892176,38590.0,38589.0,0.7319179]
[1610082139398,0.92038203,38590.0,38589.0,0.7319179]
[1610082139797,0.53952977,38590.0,38589.0,0.7319179]
[1610082140597,0.53952977,38590.0,38589.0,0.56350795]
[1610082140797,1.33734019,38590.0,38589.0,0.59558301]
[1610082140997,1.95324019,38590.0,38589.0,0.59558301]
[1610082141197,2.33412185,38590.0,38589.0,0.59558301]
[1610082142499,2.33412185,38590.0,38589.0,0.59399599]
[1610082142698,3.17451959,38590.0,38589.0,0.59399599]
[1610082143398,2.33412185,38590.0,38589.0,0.59399599]
[1610082145100,3.17448605,38590.0,38589.0,0.59399599]
[1610082145500,2.33412185,38590.0,38589.0,0.59399599]
[1610082146000,1.71822185,38590.0,38589.0,0.59399599]
[1610082146202,1.58189577,38590.0,38589.0,0.59399599]
[1610082146601,1.20101411,38590.0,38589.0,0.59399599]
[1610082146801,1.20101411,38590.0,38589.0,0.73032207]
[1610082147002,1.58185356,38590.0,38589.0,0.73032207]
[1610082147404,1.20101411,38590.0,38589.0,0.73032207]
[1610082147903,0.60071411,38590.0,38589.0,0.73032207]
[1610082148103,0.98148737,38590.0,38589.0,0.73032207]
[1610082148503,0.38073315,38598.0,38589.0,0.73032207]
[1610082148703,0.38073315,38598.0,38597.0,0.13632608]
[1610082148905,0.38073315,38598.0,38597.0,0.26966608]
[1610082149105,0.38073315,38598.0,38597.0,0.30172462]
[1610082149306,0.05230378,38599.0,38597.0,0.30172462]
[1610082149805,0.05230378,38599.0,38598.0,0.03205659]
[1610082149806,0.00430378,38599.0,38598.0,0.03205659]
[1610082150907,0.00430378,38599.0,38598.0,0.53205659]
[1610082151106,0.00430378,38599.0,38598.0,0.5955161]
[1610082154613,0.38499499,38599.0,38598.0,0.5955161]
[1610082158019,1.13708472,38599.0,38598.0,0.56187295]
[1610082158218,0.75639351,38599.0,38598.0,0.56187295]
[1610082158619,0.38506456,38599.0,38598.0,0.56187295]
[1610082164822,0.52139064,38599.0,38598.0,0.56187295]
[1610082166625,1.27616081,38599.0,38598.0,0.56187295]
[1610082167026,1.84731331,38599.0,38598.0,0.56187295]
[1610082167426,1.84731331,38599.0,38598.0,0.49841344]
[1610082167627,2.11895356,38599.0,38598.0,0.49841344]
[1610082167826,2.11895356,38599.0,38598.0,0.03641344]
[1610082168026,2.73355356,38599.0,38598.0,0.09990679]
[1610082168227,2.73355356,38599.0,38598.0,0.03641344]
[1610082168426,3.39589125,38599.0,38598.0,0.06689924]
[1610082169429,4.44926151,38599.0,38588.0,0.0972]
[1610082169629,3.83466151,38599.0,38579.0,0.13632608]
[1610082169828,6.91956151,38599.0,38598.0,0.5]
[1610082170030,3.22552986,38599.0,38598.0,0.5]
[1610082170229,3.22552986,38599.0,38598.0,0.53207522]
[1610082170429,8.809864,38599.0,38598.0,0.37335792]
[1610082170832,6.53418739,38599.0,38598.0,0.37335792]
[1610082171031,7.48647481,38599.0,38598.0,0.37335792]
[1610082172332,7.48647481,38599.0,38598.0,0.03207522]
[1610082172730,7.48647481,38599.0,38597.0,0.03207089]
[1610082172931,7.48647481,38599.0,38598.0,0.53207081]
[1610082173132,3.22552986,38599.0,38598.0,0.53207081]
[1610082173533,9.35020535,38599.0,38598.0,0.53207081]
[1610082173932,9.35020535,38599.0,38598.0,0.03207081]
[1610082174333,9.35020535,38599.0,38598.0,0.53207081]
[1610082175134,10.24091084,38599.0,38598.0,0.53207081]
[1610082175533,8.48043612,38599.0,38598.0,0.53207081]
[1610082176934,8.48043612,38599.0,38598.0,0.4981]
[1610082177536,8.48043612,38599.0,38598.0,0.59981]
[1610082178139,3.67696354,38599.0,38598.0,0.59981]
[1610082178339,0.59206354,38599.0,38598.0,0.59981]
[1610082178542,5.42011093,38599.0,38598.0,0.59822288]
[1610082178740,4.28283673,38599.0,38598.0,0.59822288]
[1610082178940,4.28283673,38599.0,38598.0,0.73454896]
[1610082179141,4.17532403,38599.0,38598.0,0.73454896]
[1610082179542,3.60399596,38599.0,38598.0,0.73454896]
[1610082180241,3.60399596,38599.0,38598.0,0.79803186]
[1610082180442,4.15539596,38599.0,38598.0,0.66170578]
[1610082180843,4.29172204,38599.0,38598.0,0.59822288]
[1610082182445,5.35326568,38599.0,38598.0,0.51887277]
[1610082183843,4.80186568,38599.0,38598.0,0.51887277]
[1610082184443,4.6655396,38599.0,38598.0,0.51887277]
[1610082184644,3.60399596,38599.0,38598.0,0.58235237]
[1610082184843,3.60399596,38599.0,38598.0,0.71867845]
[1610082185244,2.75618476,38599.0,38598.0,0.71867845]
[1610082185844,1.99919426,38599.0,38598.0,0.71867845]
[1610082187045,1.99919426,38599.0,38598.0,0.70887845]
[1610082187445,5.20339426,38599.0,38598.0,0.70887845]
[1610082188150,5.77448558,38599.0,38598.0,0.57255237]
[1610082188348,6.54096495,38599.0,38598.0,0.57255237]
[1610082188749,6.54096495,38599.0,38598.0,0.50907277]
[1610082188948,6.67729103,38599.0,38598.0,0.57254556]
[1610082189148,6.67729103,38599.0,38598.0,0.50907277]
[1610082189550,6.67729103,38599.0,38598.0,0.57254456]
[1610082189750,6.67729103,38599.0,38598.0,0.50907277]
[1610082189952,6.67729103,38599.0,38598.0,0.57254323]
[1610082190154,6.67729103,38599.0,38598.0,0.50907277]
[1610082190655,6.67729103,38599.0,38598.0,0.50748613]
[1610082191256,7.53496331,38599.0,38598.0,0.50748613]
[1610082191555,6.67729103,38599.0,38598.0,0.50748613]
[1610082192357,7.53358984,38599.0,38598.0,0.50748613]
[1610082193156,6.67729103,38599.0,38598.0,0.50748613]
[1610082193659,6.64029103,38599.0,38598.0,0.50748613]
[1610082193859,6.49229103,38599.0,38598.0,0.50748613]
[1610082194057,3.28809103,38599.0,38598.0,0.50748613]
[1610082194257,2.71699971,38599.0,38598.0,0.50748613]
[1610082194858,2.71699971,38599.0,38598.0,0.64381221]
[1610082195058,2.71699971,38599.0,38598.0,0.70728059]
[1610082196159,3.11827694,38599.0,38598.0,0.70728059]
[1610082196959,3.11827694,38599.0,38598.0,0.69128059]
[1610082198965,3.11827694,38599.0,38598.0,0.67688059]
[1610082199164,2.98195086,38599.0,38598.0,0.67688059]
[1610082199864,2.21547149,38599.0,38598.0,0.67688059]
[1610082201065,1.54930169,38599.0,38598.0,0.67688059]
[1610082204274,5.18946458,38599.0,38598.0,0.67688059]
[1610082204675,5.76052186,38599.0,38598.0,0.67688059]
[1610082204874,5.89684794,38599.0,38598.0,0.67688059]
[1610082205274,5.87684794,38599.0,38598.0,0.67688059]
[1610082206375,2.77512186,38599.0,38598.0,0.67688059]
[1610082206775,2.20406458,38599.0,38598.0,0.67688059]
[1610082206976,2.20406458,38599.0,38598.0,0.66088059]